[Event "*** Titled Tuesday Blitz"]
[Site "Chess.com"]
[Date "2018.04.03"]
[Round "1"]
[White "olomi007"]
[Black "Entilza"]
[Result "1-0"]
[WhiteElo "2545"]
[BlackElo "2205"]
[TimeControl "180+2"]
[EndTime "13:07:29 PDT"]
[Termination "olomi007 won by resignation"]

1. e4 {[%clk 0:03:01.6]} 1... c6 {[%clk 0:03:00.2]} 2. d4 {[%clk 0:03:02.5]}
2... d5 {[%clk 0:03:01.7]} 3. Nc3 {[%clk 0:03:04.1]} 3... dxe4 {[%clk 0:03:02]}
4. Nxe4 {[%clk 0:03:06]} 4... Bf5 {[%clk 0:03:02.8]} 5. Ng3 {[%clk 0:03:07]}
5... Bg6 {[%clk 0:03:04.1]} 6. h4 {[%clk 0:03:08.6]} 6... h6 {[%clk 0:03:04.6]}
7. Nf3 {[%clk 0:03:10.1]} 7... Nd7 {[%clk 0:03:04.6]} 8. h5 {[%clk 0:03:11.6]}
8... Bh7 {[%clk 0:03:05.7]} 9. Bd3 {[%clk 0:03:13.2]} 9... Bxd3 {[%clk
0:03:07.1]} 10. Qxd3 {[%clk 0:03:15.1]} 10... e6 {[%clk 0:03:08.1]} 11. Bd2
{[%clk 0:03:16]} 11... Ngf6 {[%clk 0:03:08.5]} 12. O-O-O {[%clk 0:03:17.2]}
12... Be7 {[%clk 0:03:07.9]} 13. Kb1 {[%clk 0:03:17.6]} 13... a5 {[%clk
0:03:04]} 14. Ne4 {[%clk 0:03:14.4]} 14... a4 {[%clk 0:02:52.2]} 15. g4 {[%clk
0:03:10.2]} 15... a3 {[%clk 0:02:44.8]} 16. b3 {[%clk 0:02:56.4]} 16... Nxe4
{[%clk 0:02:36.7]} 17. Qxe4 {[%clk 0:02:57.1]} 17... Nf6 {[%clk 0:02:37.9]} 18.
Qe2 {[%clk 0:02:56.1]} 18... Qb6 {[%clk 0:02:33]} 19. c4 {[%clk 0:02:37.8]}
19... Bb4 {[%clk 0:02:29.3]} 20. Bc1 {[%clk 0:02:34.8]} 20... O-O-O {[%clk
0:02:20.3]} 21. Ne5 {[%clk 0:02:32.1]} 21... Qc7 {[%clk 0:02:16.6]} 22. f4
{[%clk 0:02:13.1]} 22... c5 {[%clk 0:02:13.5]} 23. g5 {[%clk 0:02:13.3]} 23...
Ng8 {[%clk 0:02:01]} 24. d5 {[%clk 0:02:04.9]} 24... exd5 {[%clk 0:01:34.7]} 25.
cxd5 {[%clk 0:02:05.4]} 25... f6 {[%clk 0:01:33.4]} 26. Ng6 {[%clk 0:01:52.9]}
26... Rh7 {[%clk 0:01:33.4]} 27. d6 {[%clk 0:01:39.7]} 27... Qd7 {[%clk
0:01:28.6]} 28. Qc2 {[%clk 0:01:26.9]} 28... f5 {[%clk 0:01:19.2]} 29. Ne5
{[%clk 0:01:20.3]} 29... Qe6 {[%clk 0:01:18.6]} 30. g6 {[%clk 0:01:18.8]} 30...
Rh8 {[%clk 0:01:18.7]} 31. Nf7 {[%clk 0:01:14.3]} 31... Nf6 {[%clk 0:01:19.6]}
32. Rhe1 {[%clk 0:01:13.1]} 32... Ne4 {[%clk 0:01:19.4]} 33. Nxh8 {[%clk
0:01:10.2]} 33... Bxe1 {[%clk 0:01:14.5]} 34. Nf7 {[%clk 0:01:04.6]} 34... Nc3+
{[%clk 0:01:09.3]} 35. Ka1 {[%clk 0:01:01]} 35... Nxd1 {[%clk 0:01:09]} 36.
Qxc5+ {[%clk 0:00:57.1]} 36... Kb8 {[%clk 0:01:08.2]} 37. Qc7+ {[%clk
0:00:56.8]} 37... Ka7 {[%clk 0:01:09]} 38. Qxb7+ {[%clk 0:00:52]} 38... Kxb7
{[%clk 0:01:07.5]} 39. Nxd8+ {[%clk 0:00:53.9]} 39... Kc8 {[%clk 0:01:04.4]} 40.
Nxe6 {[%clk 0:00:55.8]} 40... Kd7 {[%clk 0:01:04.3]} 41. Nc5+ {[%clk 0:00:47.8]}
41... Kxd6 {[%clk 0:01:04.8]} 42. Bxa3 {[%clk 0:00:49.3]} 42... Bc3+ {[%clk
0:01:05.5]} 43. Kb1 {[%clk 0:00:49.3]} 43... Kd5 {[%clk 0:01:05.1]} 44. Kc2
{[%clk 0:00:48.7]} 1-0

[Event "*** Titled Tuesday Blitz"]
[Site "Chess.com"]
[Date "2018.04.03"]
[Round "1"]
[White "andante"]
[Black "lukas_111111"]
[Result "0-1"]
[WhiteElo "2199"]
[BlackElo "2538"]
[TimeControl "180+2"]
[EndTime "13:07:29 PDT"]
[Termination "lukas_111111 won by resignation"]

1. d4 {[%clk 0:03:00.6]} 1... Nf6 {[%clk 0:02:59.9]} 2. Nf3 {[%clk 0:03:01.2]}
2... d5 {[%clk 0:03:00]} 3. c4 {[%clk 0:03:01.7]} 3... e6 {[%clk 0:02:59.7]} 4.
Nc3 {[%clk 0:03:02.7]} 4... Bb4 {[%clk 0:02:57.4]} 5. e3 {[%clk 0:03:02.8]} 5...
O-O {[%clk 0:02:57]} 6. Qb3 {[%clk 0:03:02.2]} 6... c5 {[%clk 0:02:48.9]} 7.
dxc5 {[%clk 0:03:01.8]} 7... Nc6 {[%clk 0:02:41.4]} 8. cxd5 {[%clk 0:02:58.4]}
8... exd5 {[%clk 0:02:32.8]} 9. Bd2 {[%clk 0:02:57.3]} 9... Be6 {[%clk
0:02:27.9]} 10. Nd4 {[%clk 0:02:43.9]} 10... Bxc5 {[%clk 0:02:28.5]} 11. Nxe6
{[%clk 0:02:37.2]} 11... fxe6 {[%clk 0:02:28.1]} 12. g3 {[%clk 0:02:26.3]} 12...
Ng4 {[%clk 0:02:10.7]} 13. Nd1 {[%clk 0:02:24.2]} 13... Nce5 {[%clk 0:01:38.6]}
14. Bg2 {[%clk 0:02:14.6]} 14... Nf3+ {[%clk 0:01:33.6]} 15. Bxf3 {[%clk
0:02:08.4]} 15... Rxf3 {[%clk 0:01:34.4]} 16. Rc1 {[%clk 0:02:05.4]} 16... Qf8
{[%clk 0:01:18.4]} 17. Qxb7 {[%clk 0:01:54]} 17... Re8 {[%clk 0:00:27]} 18. O-O
{[%clk 0:01:41.8]} 18... Ne5 {[%clk 0:00:18.4]} 19. Qb5 {[%clk 0:01:38.4]} 19...
Bd6 {[%clk 0:00:14]} 20. Qa6 {[%clk 0:01:28.6]} 20... h5 {[%clk 0:00:12.9]} 21.
e4 {[%clk 0:01:15.8]} 21... d4 {[%clk 0:00:09.6]} 22. a3 {[%clk 0:01:06.5]}
22... h4 {[%clk 0:00:10.6]} 23. Bb4 {[%clk 0:01:05.2]} 23... Bxb4 {[%clk
0:00:11.1]} 24. axb4 {[%clk 0:01:05.8]} 24... h3 {[%clk 0:00:11.9]} 25. Qe2
{[%clk 0:01:03.7]} 25... d3 {[%clk 0:00:12.2]} 26. Qd2 {[%clk 0:00:56.1]} 26...
Qf6 {[%clk 0:00:12.2]} 27. Ne3 {[%clk 0:00:53.9]} 27... Qg6 {[%clk 0:00:12]} 28.
Qc3 {[%clk 0:00:53.6]} 28... Qxe4 {[%clk 0:00:11.8]} 29. Rfe1 {[%clk 0:00:51.9]}
29... Rxe3 {[%clk 0:00:12.5]} 30. f3 {[%clk 0:00:51.9]} 30... Rxe1+ {[%clk
0:00:13.2]} 31. Rxe1 {[%clk 0:00:52.3]} 31... Nxf3+ {[%clk 0:00:14.4]} 32. Kf2
{[%clk 0:00:52.2]} 32... Qxe1+ {[%clk 0:00:15.6]} 33. Kxf3 {[%clk 0:00:53.1]}
33... Qxc3 {[%clk 0:00:15.9]} 34. bxc3 {[%clk 0:00:53]} 34... Rd8 {[%clk
0:00:16.6]} 0-1

[Event "*** Titled Tuesday Blitz"]
[Site "Chess.com"]
[Date "2018.04.03"]
[Round "1"]
[White "Caisachess"]
[Black "KenanGarayev"]
[Result "1-0"]
[WhiteElo "2217"]
[BlackElo "2524"]
[TimeControl "180+2"]
[EndTime "13:07:31 PDT"]
[Termination "Caisachess won by resignation"]

1. e4 {[%clk 0:02:57.5]} 1... e6 {[%clk 0:02:57.9]} 2. d4 {[%clk 0:02:57.6]}
2... d5 {[%clk 0:02:57]} 3. Bd3 {[%clk 0:02:59]} 3... Nf6 {[%clk 0:02:53]} 4. e5
{[%clk 0:02:59.6]} 4... Nfd7 {[%clk 0:02:53.2]} 5. f4 {[%clk 0:03:00.6]} 5... c5
{[%clk 0:02:52.4]} 6. c3 {[%clk 0:03:01.9]} 6... Nc6 {[%clk 0:02:53]} 7. Nf3
{[%clk 0:03:01.5]} 7... Qb6 {[%clk 0:02:53.4]} 8. Bc2 {[%clk 0:03:02.2]} 8...
cxd4 {[%clk 0:02:46.8]} 9. cxd4 {[%clk 0:03:02.1]} 9... Bb4+ {[%clk 0:02:46.9]}
10. Nc3 {[%clk 0:03:01.6]} 10... f6 {[%clk 0:02:43.3]} 11. O-O {[%clk
0:02:59.7]} 11... fxe5 {[%clk 0:02:35.8]} 12. fxe5 {[%clk 0:03:00.4]} 12... g6
{[%clk 0:02:21.4]} 13. Kh1 {[%clk 0:02:51.6]} 13... O-O {[%clk 0:02:19.9]} 14.
Bh6 {[%clk 0:02:50.8]} 14... Rxf3 {[%clk 0:02:18.2]} 15. Qxf3 {[%clk 0:02:45.1]}
15... Nd8 {[%clk 0:02:19.1]} 16. a3 {[%clk 0:02:29]} 16... Be7 {[%clk
0:02:15.2]} 17. Nxd5 {[%clk 0:02:11.6]} 17... exd5 {[%clk 0:02:11.7]} 18. Qxd5+
{[%clk 0:02:12.5]} 18... Ne6 {[%clk 0:01:44.5]} 19. Rad1 {[%clk 0:01:58.3]}
19... Qc6 {[%clk 0:01:38.6]} 20. Qb3 {[%clk 0:01:56]} 20... Nb6 {[%clk
0:01:36.8]} 21. d5 {[%clk 0:01:56.6]} 21... Qc4 {[%clk 0:01:32.6]} 22. dxe6
{[%clk 0:01:53.3]} 22... Bxe6 {[%clk 0:01:32.4]} 23. Qxc4 {[%clk 0:01:51.5]}
23... Bxc4 {[%clk 0:01:32.7]} 24. Bd3 {[%clk 0:01:51.9]} 24... Be6 {[%clk
0:01:33.5]} 25. Be3 {[%clk 0:01:49.7]} 25... Na4 {[%clk 0:01:30.6]} 26. Bd4
{[%clk 0:01:48.5]} 26... Rd8 {[%clk 0:01:30.1]} 27. Be4 {[%clk 0:01:49.5]} 27...
Kg7 {[%clk 0:01:28.4]} 28. b4 {[%clk 0:01:45.6]} 28... Bb3 {[%clk 0:01:27.1]}
29. Rd2 {[%clk 0:01:41.6]} 29... Bg5 {[%clk 0:01:21.5]} 30. e6+ {[%clk
0:01:36.8]} 30... Kh6 {[%clk 0:01:20.9]} 31. Be3 {[%clk 0:01:27.1]} 31... Re8
{[%clk 0:01:10.6]} 32. Bxg5+ {[%clk 0:01:23.1]} 32... Kxg5 {[%clk 0:01:12.5]}
33. Bxb7 {[%clk 0:01:22.2]} 33... Rxe6 {[%clk 0:01:11.6]} 34. Bf3 {[%clk
0:01:21.6]} 34... Bc4 {[%clk 0:01:11.3]} 35. Rc1 {[%clk 0:01:20.5]} 35... Nb6
{[%clk 0:01:09.9]} 36. Kg1 {[%clk 0:01:18.3]} 36... Kh6 {[%clk 0:01:06.5]} 37.
Kf2 {[%clk 0:01:18.2]} 37... a6 {[%clk 0:01:03.7]} 38. a4 {[%clk 0:01:19.3]}
38... Bb3 {[%clk 0:01:03.7]} 39. a5 {[%clk 0:01:20]} 39... Na4 {[%clk
0:00:53.9]} 40. Bd5 {[%clk 0:01:17.3]} 40... Rf6+ {[%clk 0:00:53.3]} 41. Ke3
{[%clk 0:01:16.9]} 41... Bxd5 {[%clk 0:00:53.9]} 42. Rxd5 {[%clk 0:01:16.9]}
42... Nb2 {[%clk 0:00:54.9]} 43. Rdc5 {[%clk 0:01:15.5]} 43... Re6+ {[%clk
0:00:55]} 44. Kd4 {[%clk 0:01:16.2]} 44... Re2 {[%clk 0:00:55.8]} 45. R5c2
{[%clk 0:01:16.4]} 1-0

[Event "*** Titled Tuesday Blitz"]
[Site "Chess.com"]
[Date "2018.04.03"]
[Round "1"]
[White "Divertissement"]
[Black "Chess_Lynx"]
[Result "1-0"]
[WhiteElo "2458"]
[BlackElo "2021"]
[TimeControl "180+2"]
[EndTime "13:07:33 PDT"]
[Termination "Divertissement won by checkmate"]

1. d4 {[%clk 0:02:56.6]} 1... Nf6 {[%clk 0:02:59.5]} 2. Nf3 {[%clk 0:02:57]}
2... g6 {[%clk 0:02:59.9]} 3. Bg5 {[%clk 0:02:58]} 3... Bg7 {[%clk 0:03:00.6]}
4. Nbd2 {[%clk 0:02:58.6]} 4... O-O {[%clk 0:03:01.2]} 5. c3 {[%clk 0:02:54.5]}
5... d6 {[%clk 0:03:01.8]} 6. e4 {[%clk 0:02:55.4]} 6... h6 {[%clk 0:03:01.9]}
7. Bh4 {[%clk 0:02:55.5]} 7... c5 {[%clk 0:02:57.4]} 8. dxc5 {[%clk 0:02:52.3]}
8... dxc5 {[%clk 0:02:59.2]} 9. Bc4 {[%clk 0:02:48.5]} 9... Nc6 {[%clk
0:02:56.5]} 10. O-O {[%clk 0:02:33.7]} 10... a6 {[%clk 0:02:53.4]} 11. a4 {[%clk
0:02:29.9]} 11... Qb6 {[%clk 0:02:21.2]} 12. Qc2 {[%clk 0:02:01.9]} 12... Bg4
{[%clk 0:01:45.2]} 13. h3 {[%clk 0:01:50.7]} 13... Bd7 {[%clk 0:01:44]} 14. e5
{[%clk 0:01:40.9]} 14... Nh5 {[%clk 0:01:35.2]} 15. e6 {[%clk 0:01:39.1]} 15...
fxe6 {[%clk 0:01:26.2]} 16. Qxg6 {[%clk 0:01:38.6]} 16... Nf4 {[%clk 0:01:21.7]}
17. Qc2 {[%clk 0:01:30.7]} 17... Kh8 {[%clk 0:01:14.7]} 18. Rfe1 {[%clk
0:01:15.5]} 18... e5 {[%clk 0:01:14.5]} 19. Bg3 {[%clk 0:00:58]} 19... Bf5
{[%clk 0:01:12.4]} 20. Qb3 {[%clk 0:00:56.6]} 20... Qc7 {[%clk 0:01:09.3]} 21.
Bxf4 {[%clk 0:00:50.9]} 21... exf4 {[%clk 0:01:09.3]} 22. Be6 {[%clk 0:00:50.1]}
22... Na5 {[%clk 0:01:06]} 23. Qa2 {[%clk 0:00:50.5]} 23... c4 {[%clk
0:01:01.1]} 24. Bxf5 {[%clk 0:00:50.4]} 24... Rxf5 {[%clk 0:01:02.7]} 25. Qb1
{[%clk 0:00:50.8]} 25... Raf8 {[%clk 0:01:01.8]} 26. Nh4 {[%clk 0:00:51.9]}
26... Rg5 {[%clk 0:01:01.3]} 27. Ng6+ {[%clk 0:00:51.8]} 27... Rxg6 {[%clk
0:00:56.8]} 28. Qxg6 {[%clk 0:00:53.2]} 28... Qd7 {[%clk 0:00:44.7]} 29. Nf3
{[%clk 0:00:50.1]} 29... Nb3 {[%clk 0:00:43.1]} 30. Rad1 {[%clk 0:00:50.1]}
30... Qxa4 {[%clk 0:00:43.6]} 31. Rxe7 {[%clk 0:00:50.3]} 31... Rg8 {[%clk
0:00:43.6]} 32. Rd8 {[%clk 0:00:47.3]} 32... Qa1+ {[%clk 0:00:36.9]} 33. Kh2
{[%clk 0:00:48]} 33... Bxc3 {[%clk 0:00:18.3]} 34. Qxg8# {[%clk 0:00:47.4]} 1-0

[Event "*** Titled Tuesday Blitz"]
[Site "Chess.com"]
[Date "2018.04.03"]
[Round "1"]
[White "Guriempire"]
[Black "nochewycandy"]
[Result "1-0"]
[WhiteElo "2477"]
[BlackElo "2090"]
[TimeControl "180+2"]
[EndTime "13:07:37 PDT"]
[Termination "Guriempire won by resignation"]

1. e4 {[%clk 0:03:01.9]} 1... g6 {[%clk 0:03:00.8]} 2. d4 {[%clk 0:03:02.4]}
2... Bg7 {[%clk 0:03:02.7]} 3. Nc3 {[%clk 0:03:02.9]} 3... d6 {[%clk 0:03:02.4]}
4. Be3 {[%clk 0:03:04.2]} 4... a6 {[%clk 0:03:03.4]} 5. Qd2 {[%clk 0:03:05.8]}
5... b5 {[%clk 0:03:04.6]} 6. O-O-O {[%clk 0:03:07.5]} 6... Bb7 {[%clk 0:03:06]}
7. f3 {[%clk 0:03:08.9]} 7... Nd7 {[%clk 0:03:07.2]} 8. h4 {[%clk 0:03:09.9]}
8... h6 {[%clk 0:03:07.3]} 9. Nh3 {[%clk 0:03:09]} 9... Rc8 {[%clk 0:03:08.5]}
10. Nf4 {[%clk 0:03:08.9]} 10... c5 {[%clk 0:03:09.2]} 11. d5 {[%clk 0:03:10.4]}
11... Ngf6 {[%clk 0:03:07.7]} 12. Kb1 {[%clk 0:03:10.9]} 12... Qa5 {[%clk
0:03:09.2]} 13. g4 {[%clk 0:03:08.5]} 13... Ne5 {[%clk 0:03:04.9]} 14. Qg2
{[%clk 0:02:52.7]} 14... b4 {[%clk 0:03:01.4]} 15. Nce2 {[%clk 0:02:53.8]} 15...
Nc4 {[%clk 0:03:00.6]} 16. Bc1 {[%clk 0:02:48.1]} 16... Nd7 {[%clk 0:02:45.5]}
17. Ng3 {[%clk 0:02:37.7]} 17... Ndb6 {[%clk 0:02:39.1]} 18. Bxc4 {[%clk
0:02:36.7]} 18... Nxc4 {[%clk 0:02:40.1]} 19. Qe2 {[%clk 0:02:38.1]} 19... Ne5
{[%clk 0:02:34.6]} 20. h5 {[%clk 0:02:28.7]} 20... g5 {[%clk 0:02:16.7]} 21. Nf5
{[%clk 0:02:29.9]} 21... Bf6 {[%clk 0:02:14.3]} 22. Nd3 {[%clk 0:02:23.2]} 22...
c4 {[%clk 0:01:58]} 23. Nxe5 {[%clk 0:02:20]} 23... Bxe5 {[%clk 0:01:59.9]} 24.
f4 {[%clk 0:01:53]} 24... gxf4 {[%clk 0:01:57.1]} 25. Rhf1 {[%clk 0:01:54.3]}
25... b3 {[%clk 0:01:41.4]} 26. cxb3 {[%clk 0:01:54.3]} 26... cxb3 {[%clk
0:01:43.3]} 27. axb3 {[%clk 0:01:55.4]} 27... Qb4 {[%clk 0:01:30.3]} 28. Bxf4
{[%clk 0:01:51.2]} 28... Bxf4 {[%clk 0:01:14.5]} 29. Rxf4 {[%clk 0:01:53.1]}
29... Rc7 {[%clk 0:01:10.5]} 30. Rf3 {[%clk 0:01:48.2]} 30... Rd7 {[%clk
0:01:01.2]} 31. e5 {[%clk 0:01:45.2]} 31... dxe5 {[%clk 0:00:43.4]} 32. Qxe5
{[%clk 0:01:43.3]} 32... Rh7 {[%clk 0:00:42.6]} 33. Rc3 {[%clk 0:01:27.7]} 33...
f6 {[%clk 0:00:27.9]} 34. Qe6 {[%clk 0:01:23.2]} 34... Qxg4 {[%clk 0:00:20.2]}
35. Nd6+ {[%clk 0:01:21.5]} 35... Rxd6 {[%clk 0:00:21.3]} 36. Qxg4 {[%clk
0:01:22.4]} 36... Rh8 {[%clk 0:00:19.7]} 37. Qg6+ {[%clk 0:01:19.8]} 37... Kd7
{[%clk 0:00:20.3]} 38. Qf5+ {[%clk 0:01:20.4]} 38... Kd8 {[%clk 0:00:20.9]} 39.
Rdc1 {[%clk 0:01:21.3]} 39... Rd7 {[%clk 0:00:19]} 40. d6 {[%clk 0:01:19.3]}
40... Rf8 {[%clk 0:00:15.6]} 41. dxe7+ {[%clk 0:01:16.4]} 41... Kxe7 {[%clk
0:00:17.5]} 42. Rc7 {[%clk 0:01:15.5]} 1-0

[Event "*** Titled Tuesday Blitz"]
[Site "Chess.com"]
[Date "2018.04.03"]
[Round "1"]
[White "joppie2"]
[Black "WinnerOleg"]
[Result "1-0"]
[WhiteElo "2690"]
[BlackElo "2359"]
[TimeControl "180+2"]
[EndTime "13:07:55 PDT"]
[Termination "joppie2 won by resignation"]

1. e4 {[%clk 0:02:56.6]} 1... g6 {[%clk 0:02:51.5]} 2. d4 {[%clk 0:02:55.4]}
2... Bg7 {[%clk 0:02:50.1]} 3. Nf3 {[%clk 0:02:56]} 3... d6 {[%clk 0:02:50.5]}
4. Bd3 {[%clk 0:02:57]} 4... Nf6 {[%clk 0:02:51.1]} 5. O-O {[%clk 0:02:58.2]}
5... O-O {[%clk 0:02:52.6]} 6. Re1 {[%clk 0:02:59]} 6... Nc6 {[%clk 0:02:53.8]}
7. d5 {[%clk 0:03:00.5]} 7... Ne5 {[%clk 0:02:47.6]} 8. Nxe5 {[%clk 0:03:00.6]}
8... dxe5 {[%clk 0:02:49.5]} 9. Nc3 {[%clk 0:03:00.8]} 9... e6 {[%clk
0:02:50.4]} 10. Bg5 {[%clk 0:02:58.7]} 10... Re8 {[%clk 0:02:43.3]} 11. Bb5
{[%clk 0:02:58.4]} 11... Bd7 {[%clk 0:02:41.2]} 12. dxe6 {[%clk 0:02:59.3]}
12... Bxb5 {[%clk 0:02:20.8]} 13. exf7+ {[%clk 0:03:00]} 13... Kxf7 {[%clk
0:02:22.7]} 14. Nxb5 {[%clk 0:03:01.5]} 14... Qxd1 {[%clk 0:02:09.8]} 15. Raxd1
{[%clk 0:03:03.3]} 15... Re7 {[%clk 0:02:10.1]} 16. Rd3 {[%clk 0:02:55.1]} 16...
h6 {[%clk 0:02:11]} 17. Bxf6 {[%clk 0:02:55.2]} 17... Bxf6 {[%clk 0:02:10.2]}
18. Red1 {[%clk 0:02:56.9]} 18... a6 {[%clk 0:02:08.9]} 19. Nc3 {[%clk
0:02:58.1]} 19... c6 {[%clk 0:02:07.2]} 20. Na4 {[%clk 0:02:58.4]} 20... Rc8
{[%clk 0:01:48.8]} 21. Nb6 {[%clk 0:02:58.9]} 21... Rcc7 {[%clk 0:01:47.2]} 22.
g3 {[%clk 0:02:53.9]} 22... h5 {[%clk 0:01:47.2]} 23. h4 {[%clk 0:02:54.5]}
23... Ke6 {[%clk 0:01:45.9]} 24. Rd6+ {[%clk 0:02:54.8]} 24... Kf7 {[%clk
0:01:46.2]} 25. R1d3 {[%clk 0:02:56.3]} 25... Re6 {[%clk 0:01:44]} 26. Rd7+
{[%clk 0:02:48.8]} 26... Re7 {[%clk 0:01:41.8]} 27. Rd8 {[%clk 0:02:45.8]} 27...
Re8 {[%clk 0:01:40.3]} 28. R3d7+ {[%clk 0:02:39.7]} 28... Rxd7 {[%clk
0:01:32.4]} 29. Rxd7+ {[%clk 0:02:41.6]} 29... Re7 {[%clk 0:01:33.9]} 30. Rd3
{[%clk 0:02:38.5]} 30... Ke6 {[%clk 0:01:33.2]} 31. Kg2 {[%clk 0:02:38.8]} 31...
Re8 {[%clk 0:01:31.4]} 32. b3 {[%clk 0:02:22.2]} 32... Bd8 {[%clk 0:01:14.8]}
33. Nc4 {[%clk 0:02:22.6]} 33... Bc7 {[%clk 0:01:16.1]} 34. Nd2 {[%clk
0:02:16.1]} 34... Rd8 {[%clk 0:01:10.2]} 35. Rxd8 {[%clk 0:02:16.1]} 35... Bxd8
{[%clk 0:01:12.1]} 36. Kf1 {[%clk 0:02:17.4]} 36... g5 {[%clk 0:01:07.5]} 37.
hxg5 {[%clk 0:02:16.8]} 37... Bxg5 {[%clk 0:01:09.4]} 38. Nf3 {[%clk 0:02:18.7]}
38... Be7 {[%clk 0:01:09.7]} 39. Ke2 {[%clk 0:02:19.2]} 39... b5 {[%clk
0:01:08.1]} 40. Kd3 {[%clk 0:02:13.1]} 40... Kd6 {[%clk 0:01:07.4]} 41. Ne1
{[%clk 0:02:01.9]} 41... Ke6 {[%clk 0:01:04.3]} 42. Ng2 {[%clk 0:02:02]} 42...
Bg5 {[%clk 0:00:50.3]} 43. f4 {[%clk 0:01:59.1]} 43... Be7 {[%clk 0:00:51.6]}
44. Ke3 {[%clk 0:01:57.5]} 44... Bc5+ {[%clk 0:00:35.4]} 45. Kf3 {[%clk
0:01:57]} 45... Be7 {[%clk 0:00:37]} 46. Ne3 {[%clk 0:01:56.7]} 46... Bc5 {[%clk
0:00:26.7]} 47. Nf5 {[%clk 0:01:57.5]} 47... Bf8 {[%clk 0:00:22.8]} 48. Nh4
{[%clk 0:01:57.2]} 48... Kf6 {[%clk 0:00:21.7]} 49. fxe5+ {[%clk 0:01:57.8]}
49... Ke6 {[%clk 0:00:21.7]} 50. Ng6 {[%clk 0:01:59]} 50... Bg7 {[%clk 0:00:22]}
51. Nf4+ {[%clk 0:01:59]} 51... Kxe5 {[%clk 0:00:23]} 52. Nxh5 {[%clk
0:02:00.1]} 52... Bh8 {[%clk 0:00:24.5]} 53. Nf4 {[%clk 0:01:59.8]} 53... Kd4
{[%clk 0:00:25.2]} 54. Ng6 {[%clk 0:01:59.8]} 54... Bf6 {[%clk 0:00:24.3]} 55.
e5 {[%clk 0:02:01.1]} 55... Bxe5 {[%clk 0:00:25.3]} 56. Nxe5 {[%clk 0:01:57.4]}
56... Kxe5 {[%clk 0:00:27.2]} 57. b4 {[%clk 0:01:59]} 1-0

[Event "*** Titled Tuesday Blitz"]
[Site "Chess.com"]
[Date "2018.04.03"]
[Round "1"]
[White "Margency"]
[Black "abubakrtagelsir"]
[Result "0-1"]
[WhiteElo "2573"]
[BlackElo "2269"]
[TimeControl "180+2"]
[EndTime "13:07:55 PDT"]
[Termination "abubakrtagelsir won by resignation"]

1. e4 {[%clk 0:03:01.9]} 1... d6 {[%clk 0:02:59.3]} 2. d4 {[%clk 0:03:01.3]}
2... Nf6 {[%clk 0:02:55.1]} 3. Nc3 {[%clk 0:03:02.3]} 3... g6 {[%clk 0:02:54.9]}
4. Bg5 {[%clk 0:03:01.7]} 4... Bg7 {[%clk 0:02:55.1]} 5. Qd2 {[%clk 0:03:02.9]}
5... h6 {[%clk 0:02:55.3]} 6. Bh4 {[%clk 0:03:04.1]} 6... O-O {[%clk 0:02:53.1]}
7. f4 {[%clk 0:03:04.4]} 7... c6 {[%clk 0:02:30.9]} 8. O-O-O {[%clk 0:03:03.9]}
8... b5 {[%clk 0:02:30.4]} 9. Bd3 {[%clk 0:03:00.9]} 9... b4 {[%clk 0:02:29.2]}
10. Nce2 {[%clk 0:03:00.2]} 10... Qa5 {[%clk 0:02:28.6]} 11. Kb1 {[%clk
0:03:00.7]} 11... c5 {[%clk 0:02:27.8]} 12. dxc5 {[%clk 0:02:58]} 12... Be6
{[%clk 0:02:20.9]} 13. Nc1 {[%clk 0:02:57]} 13... dxc5 {[%clk 0:02:17.8]} 14. f5
{[%clk 0:02:51.9]} 14... gxf5 {[%clk 0:02:02.4]} 15. exf5 {[%clk 0:02:52.8]}
15... Bd5 {[%clk 0:02:02.4]} 16. Nb3 {[%clk 0:02:49.8]} 16... Qb6 {[%clk
0:01:57]} 17. Bf2 {[%clk 0:02:42.3]} 17... Nbd7 {[%clk 0:01:54.7]} 18. Nf3
{[%clk 0:02:41.9]} 18... a5 {[%clk 0:01:52.9]} 19. Qe3 {[%clk 0:02:38.6]} 19...
Rfc8 {[%clk 0:01:25.9]} 20. Qxe7 {[%clk 0:02:34.4]} 20... Re8 {[%clk 0:01:24.5]}
21. Bxc5 {[%clk 0:02:26.3]} 21... Rxe7 {[%clk 0:01:24.5]} 22. Bxb6 {[%clk
0:02:27.5]} 22... Nxb6 {[%clk 0:01:24.3]} 23. Rhe1 {[%clk 0:02:17.4]} 23... Rxe1
{[%clk 0:01:22.9]} 24. Rxe1 {[%clk 0:02:18.1]} 24... Bxf3 {[%clk 0:01:21.7]} 25.
gxf3 {[%clk 0:02:18.5]} 25... Nfd5 {[%clk 0:01:20.4]} 26. Nc5 {[%clk 0:02:12.9]}
26... Rc8 {[%clk 0:01:12.4]} 27. Ne4 {[%clk 0:02:08.6]} 27... Na4 {[%clk
0:01:06.1]} 28. Rg1 {[%clk 0:02:05.6]} 28... Kf8 {[%clk 0:01:05.9]} 29. Bb5
{[%clk 0:02:01.7]} 29... Nxb2 {[%clk 0:00:24]} 30. Rxg7 {[%clk 0:02:01.5]} 30...
Kxg7 {[%clk 0:00:21.6]} 31. Kxb2 {[%clk 0:02:02.6]} 31... Nc3 {[%clk 0:00:22.1]}
32. Bd3 {[%clk 0:01:44.1]} 32... Nxe4 {[%clk 0:00:22.6]} 33. fxe4 {[%clk
0:01:41.2]} 33... Kf6 {[%clk 0:00:22.4]} 34. Kb3 {[%clk 0:01:42.4]} 34... Rc3+
{[%clk 0:00:22.6]} 35. Kb2 {[%clk 0:01:41.9]} 35... Ke5 {[%clk 0:00:22.6]} 36.
Kc1 {[%clk 0:01:40.6]} 36... f6 {[%clk 0:00:22.9]} 37. Kb2 {[%clk 0:01:41]}
37... Kd4 {[%clk 0:00:24]} 38. Kc1 {[%clk 0:01:39.8]} 38... a4 {[%clk
0:00:24.9]} 39. Kb2 {[%clk 0:01:38.7]} 39... a3+ {[%clk 0:00:26.2]} 40. Kc1
{[%clk 0:01:39.8]} 40... Rc7 {[%clk 0:00:27.2]} 41. Kd2 {[%clk 0:01:40.8]} 41...
Rg7 {[%clk 0:00:27.9]} 42. h4 {[%clk 0:01:38.4]} 42... Rg2+ {[%clk 0:00:28]} 43.
Ke1 {[%clk 0:01:39.7]} 43... Rh2 {[%clk 0:00:28.8]} 44. Kf1 {[%clk 0:01:40.1]}
44... Rxh4 {[%clk 0:00:29.5]} 45. Kg2 {[%clk 0:01:41.7]} 45... Rg4+ {[%clk
0:00:29.7]} 46. Kf2 {[%clk 0:01:41.6]} 46... h5 {[%clk 0:00:26.4]} 47. Kf3
{[%clk 0:01:42.7]} 47... Rg5 {[%clk 0:00:27.2]} 48. Kf4 {[%clk 0:01:43.2]} 48...
Rg1 {[%clk 0:00:26.4]} 49. Kf3 {[%clk 0:01:42.4]} 49... h4 {[%clk 0:00:26.2]}
50. Kf2 {[%clk 0:01:43.6]} 50... Rg3 {[%clk 0:00:26.8]} 51. Bf1 {[%clk
0:01:44.2]} 51... Rc3 {[%clk 0:00:26.2]} 52. Bd3 {[%clk 0:01:43.2]} 52... Rxd3
{[%clk 0:00:26.8]} 53. cxd3 {[%clk 0:01:44.4]} 53... b3 {[%clk 0:00:28.1]} 54.
axb3 {[%clk 0:01:45.6]} 0-1